[Event "Live Chess"]
[Site "Chess.com"]
[Date "2024.06.02"]
[Round "-"]
[White "LL220284LL"]
[Black "willc-h99"]
[Result "1-0"]
[WhiteElo "2479"]
[BlackElo "2586"]
[TimeControl "300"]
[EndTime "8:15:28 PDT"]
[Termination "LL220284LL won by resignation"]

1. Nf3 {[%clk 0:04:58.6]} 1... c5 {[%clk 0:04:58.1]} 2. g3 {[%clk 0:04:56.8]}
2... Nc6 {[%clk 0:04:57.3]} 3. Bg2 {[%clk 0:04:55.5]} 3... g6 {[%clk 0:04:56.8]}
4. O-O {[%clk 0:04:53.9]} 4... Bg7 {[%clk 0:04:56.4]} 5. d3 {[%clk 0:04:53.5]}
5... d6 {[%clk 0:04:55.4]} 6. Nbd2 {[%clk 0:04:53]} 6... e5 {[%clk 0:04:54.3]}
7. e4 {[%clk 0:04:51.1]} 7... Nge7 {[%clk 0:04:53.9]} 8. c3 {[%clk 0:04:47.3]}
8... O-O {[%clk 0:04:52.9]} 9. Re1 {[%clk 0:04:45]} 9... h6 {[%clk 0:04:48.3]}
10. Nf1 {[%clk 0:04:43.5]} 10... Be6 {[%clk 0:04:42.3]} 11. Ne3 {[%clk
0:04:42.2]} 11... d5 {[%clk 0:04:35.9]} 12. exd5 {[%clk 0:04:39.1]} 12... Nxd5
{[%clk 0:04:35]} 13. Qe2 {[%clk 0:04:30.9]} 13... Re8 {[%clk 0:04:30]} 14. Nxd5
{[%clk 0:04:24.8]} 14... Bxd5 {[%clk 0:04:28.7]} 15. Be3 {[%clk 0:04:24.4]}
15... Nd4 {[%clk 0:04:18.5]} 16. Qd1 {[%clk 0:04:14.7]} 16... Nxf3+ {[%clk
0:04:14.3]} 17. Bxf3 {[%clk 0:04:12.5]} 17... Bxf3 {[%clk 0:04:13.2]} 18. Qxf3
{[%clk 0:04:12.4]} 18... Qxd3 {[%clk 0:04:10.6]} 19. Qxb7 {[%clk 0:04:02.4]}
19... Rab8 {[%clk 0:04:05.4]} 20. Qxa7 {[%clk 0:03:59.9]} 20... Rxb2 {[%clk
0:04:02.5]} 21. Qxc5 {[%clk 0:03:56.2]} 21... h5 {[%clk 0:03:41.8]} 22. Rad1
{[%clk 0:03:43.2]} 22... Qf5 {[%clk 0:03:39.5]} 23. a4 {[%clk 0:03:35.8]} 23...
h4 {[%clk 0:03:34.9]} 24. a5 {[%clk 0:03:32.6]} 24... h3 {[%clk 0:03:27.9]} 25.
Qc6 {[%clk 0:03:18.6]} 25... Rc8 {[%clk 0:03:15.3]} 26. Qd7 {[%clk 0:03:17.1]}
26... Rxc3 {[%clk 0:02:44.4]} 27. Qxf5 {[%clk 0:02:49.3]} 27... gxf5 {[%clk
0:02:44.3]} 28. a6 {[%clk 0:02:48]} 28... Ra2 {[%clk 0:02:43.2]} 29. a7 {[%clk
0:02:46.4]} 29... Rxe3 {[%clk 0:02:30.7]} 30. Rxe3 {[%clk 0:02:43.1]} 30... Rxa7
{[%clk 0:02:28.5]} 31. Rf3 {[%clk 0:02:42]} 31... Kh7 {[%clk 0:02:17.3]} 32.
Rxf5 {[%clk 0:02:39.8]} 32... Kg6 {[%clk 0:02:16.8]} 33. Rf3 {[%clk 0:02:36.7]}
33... f5 {[%clk 0:02:11.9]} 34. Rb3 {[%clk 0:02:30.5]} 34... e4 {[%clk 0:02:08]}
35. f3 {[%clk 0:02:25.6]} 35... Ra2 {[%clk 0:02:03.2]} 36. fxe4 {[%clk
0:02:22.3]} 36... fxe4 {[%clk 0:02:00.6]} 37. Re3 {[%clk 0:02:15.2]} 37... Kf5
{[%clk 0:01:57.3]} 38. Rf1+ {[%clk 0:02:10.5]} 38... Ke5 {[%clk 0:01:54]} 39.
Rf4 {[%clk 0:02:05.1]} 39... Ra1+ {[%clk 0:01:37.1]} 40. Kf2 {[%clk 0:02:02.7]}
40... Ra2+ {[%clk 0:01:36.6]} 41. Re2 {[%clk 0:01:54.9]} 41... Ra4 {[%clk
0:01:35.8]} 42. Rc2 {[%clk 0:01:48.3]} 42... Bf8 {[%clk 0:01:24]} 43. Rxf8
{[%clk 0:01:45]} 1-0

[Event "Live Chess"]
[Site "Chess.com"]
[Date "2024.06.02"]
[Round "-"]
[White "JanMur7"]
[Black "educatedlad"]
[Result "1-0"]
[WhiteElo "2289"]
[BlackElo "1750"]
[TimeControl "300"]
[EndTime "8:15:35 PDT"]
[Termination "JanMur7 won by checkmate"]

1. c4 {[%clk 0:04:58.2]} 1... c5 {[%clk 0:04:58.6]} 2. Nc3 {[%clk 0:04:56.1]}
2... Nc6 {[%clk 0:04:58.1]} 3. g3 {[%clk 0:04:53.5]} 3... g6 {[%clk 0:04:57.6]}
4. Bg2 {[%clk 0:04:52.9]} 4... Bg7 {[%clk 0:04:56.4]} 5. e3 {[%clk 0:04:52.8]}
5... e6 {[%clk 0:04:51.8]} 6. Nge2 {[%clk 0:04:52.2]} 6... Nge7 {[%clk
0:04:49.3]} 7. O-O {[%clk 0:04:51.2]} 7... O-O {[%clk 0:04:47.9]} 8. d4 {[%clk
0:04:49]} 8... d5 {[%clk 0:04:46.9]} 9. dxc5 {[%clk 0:04:47.1]} 9... dxc4 {[%clk
0:04:33.9]} 10. Qd6 {[%clk 0:04:45.1]} 10... Nf5 {[%clk 0:04:31.6]} 11. Qd1
{[%clk 0:04:26.9]} 11... Qa5 {[%clk 0:04:25.9]} 12. Ne4 {[%clk 0:04:23.1]} 12...
Rd8 {[%clk 0:04:17.1]} 13. Qc2 {[%clk 0:04:20.5]} 13... Ne5 {[%clk 0:04:11]} 14.
Bd2 {[%clk 0:04:14.9]} 14... Qc7 {[%clk 0:04:08.4]} 15. Bc3 {[%clk 0:04:08.9]}
15... Nd3 {[%clk 0:04:03.3]} 16. Bxg7 {[%clk 0:04:03.7]} 16... Kxg7 {[%clk
0:04:01.4]} 17. Qxc4 {[%clk 0:03:53.7]} 17... Nxb2 {[%clk 0:03:54.5]} 18. Qc3+
{[%clk 0:03:51.8]} 18... Kg8 {[%clk 0:03:48.9]} 19. Nf6+ {[%clk 0:03:49.4]}
19... Kf8 {[%clk 0:03:47.2]} 20. Nxh7+ {[%clk 0:03:47.5]} 20... Kg8 {[%clk
0:03:46.1]} 21. Nf6+ {[%clk 0:03:45.4]} 21... Kf8 {[%clk 0:03:45.5]} 22. Qxb2
{[%clk 0:03:44.4]} 22... Qxc5 {[%clk 0:03:41.4]} 23. Rfd1 {[%clk 0:03:41.7]}
23... Rxd1+ {[%clk 0:03:36.5]} 24. Rxd1 {[%clk 0:03:41.6]} 24... Ke7 {[%clk
0:03:33]} 25. Ne4 {[%clk 0:03:37.2]} 25... Qc4 {[%clk 0:03:28.5]} 26. Qf6+
{[%clk 0:03:34.1]} 26... Ke8 {[%clk 0:03:23.8]} 27. Rd8# {[%clk 0:03:34]} 1-0

[Event "Live Chess"]
[Site "Chess.com"]
[Date "2024.06.02"]
[Round "-"]
[White "McCarthyStone"]
[Black "ameetghasi100"]
[Result "1-0"]
[WhiteElo "2477"]
[BlackElo "2744"]
[TimeControl "300"]
[EndTime "8:15:37 PDT"]
[Termination "McCarthyStone won by resignation"]

1. b3 {[%clk 0:04:54.9]} 1... c5 {[%clk 0:04:58]} 2. Bb2 {[%clk 0:04:54.2]} 2...
b6 {[%clk 0:04:57.6]} 3. Nf3 {[%clk 0:04:50.8]} 3... Bb7 {[%clk 0:04:55.5]} 4.
c4 {[%clk 0:04:50.4]} 4... Nf6 {[%clk 0:04:55]} 5. g3 {[%clk 0:04:49.5]} 5... e6
{[%clk 0:04:53.4]} 6. Bg2 {[%clk 0:04:48.6]} 6... Nc6 {[%clk 0:04:52.7]} 7. O-O
{[%clk 0:04:44.3]} 7... Qc7 {[%clk 0:04:52.2]} 8. d4 {[%clk 0:04:43.4]} 8...
cxd4 {[%clk 0:04:51.5]} 9. Nxd4 {[%clk 0:04:42.1]} 9... Nxd4 {[%clk 0:04:51.1]}
10. Qxd4 {[%clk 0:04:42]} 10... Bxg2 {[%clk 0:04:50.2]} 11. Kxg2 {[%clk
0:04:41.9]} 11... Qb7+ {[%clk 0:04:49.8]} 12. f3 {[%clk 0:04:32.6]} 12... h5
{[%clk 0:04:49.3]} 13. h4 {[%clk 0:04:21.6]} 13... Rc8 {[%clk 0:04:48.4]} 14.
Nc3 {[%clk 0:04:19.1]} 14... Bc5 {[%clk 0:04:47.9]} 15. Qf4 {[%clk 0:04:12.5]}
15... Rh6 {[%clk 0:04:47.4]} 16. Rad1 {[%clk 0:04:06.9]} 16... Rg6 {[%clk
0:04:46.6]} 17. Nb5 {[%clk 0:04:03.4]} 17... a6 {[%clk 0:04:44.1]} 18. Nd6+
{[%clk 0:03:59.9]} 18... Bxd6 {[%clk 0:04:42.2]} 19. Qxd6 {[%clk 0:03:59.8]}
19... Qc6 {[%clk 0:04:38.8]} 20. Ba3 {[%clk 0:03:36.8]} 20... Qxd6 {[%clk
0:04:36.9]} 21. Rxd6 {[%clk 0:03:36.7]} 21... Rc6 {[%clk 0:04:35.5]} 22. Rfd1
{[%clk 0:03:36.3]} 22... e5 {[%clk 0:04:22.9]} 23. e4 {[%clk 0:03:05.9]} 23...
Ng8 {[%clk 0:04:14.5]} 24. Rxd7 {[%clk 0:03:00]} 24... Rc8 {[%clk 0:04:09.5]}
25. Ra7 {[%clk 0:02:32.7]} 25... a5 {[%clk 0:04:05.2]} 26. Rdd7 {[%clk
0:02:28.1]} 26... Rf6 {[%clk 0:04:04.7]} 27. Bd6 {[%clk 0:02:15.8]} 27... Re6
{[%clk 0:03:58.3]} 28. Ba3 {[%clk 0:01:55.1]} 28... Rf6 {[%clk 0:03:45.2]} 29.
Bb2 {[%clk 0:01:49.5]} 29... Rc5 {[%clk 0:03:35.5]} 30. f4 {[%clk 0:01:41.1]}
30... exf4 {[%clk 0:03:26.8]} 31. Bxf6 {[%clk 0:01:40]} 31... Nxf6 {[%clk
0:03:24.9]} 32. Re7+ {[%clk 0:01:35]} 32... Kd8 {[%clk 0:03:16]} 33. Rxf7 {[%clk
0:01:34.1]} 33... Ke8 {[%clk 0:03:11.9]} 34. Rfe7+ {[%clk 0:01:27.2]} 34... Kd8
{[%clk 0:03:04.4]} 35. gxf4 {[%clk 0:01:06]} 35... Ne8 {[%clk 0:02:57.1]} 36.
Reb7 {[%clk 0:01:00.7]} 36... Kc8 {[%clk 0:02:54.2]} 37. Rxb6 {[%clk 0:00:55.1]}
37... Nf6 {[%clk 0:02:53.7]} 38. Rb5 {[%clk 0:00:46.6]} 38... Rc6 {[%clk
0:02:52.5]} 39. Kf3 {[%clk 0:00:43.1]} 39... Nd7 {[%clk 0:02:50.6]} 40. Rbxa5
{[%clk 0:00:39.4]} 40... Kb8 {[%clk 0:02:42.9]} 41. Rxd7 {[%clk 0:00:36.5]}
41... Rg6 {[%clk 0:02:41.5]} 42. Rg5 {[%clk 0:00:34.9]} 42... Ra6 {[%clk
0:02:40.4]} 43. Rgxg7 {[%clk 0:00:32.7]} 43... Kc8 {[%clk 0:02:40.1]} 44. Rdf7
{[%clk 0:00:31.9]} 44... Rd6 {[%clk 0:02:37.4]} 45. Rf8+ {[%clk 0:00:31]} 1-0

[Event "Live Chess"]
[Site "Chess.com"]
[Date "2024.06.02"]
[Round "-"]
[White "joellloyd"]
[Black "booktrunk"]
[Result "1-0"]
[WhiteElo "1893"]
[BlackElo "1487"]
[TimeControl "300"]
[EndTime "8:15:38 PDT"]
[Termination "joellloyd won by checkmate"]

1. e4 {[%clk 0:04:59.2]} 1... a6 {[%clk 0:04:54.6]} 2. d4 {[%clk 0:04:58.4]}
2... h6 {[%clk 0:04:54]} 3. Bd3 {[%clk 0:04:57.3]} 3... e6 {[%clk 0:04:53.1]} 4.
c4 {[%clk 0:04:56.1]} 4... d6 {[%clk 0:04:52]} 5. Nc3 {[%clk 0:04:55.3]} 5...
Nd7 {[%clk 0:04:51.2]} 6. Nf3 {[%clk 0:04:54.8]} 6... Ne7 {[%clk 0:04:50.4]} 7.
O-O {[%clk 0:04:54.4]} 7... f6 {[%clk 0:04:49.2]} 8. Qc2 {[%clk 0:04:51.4]} 8...
e5 {[%clk 0:04:43.8]} 9. d5 {[%clk 0:04:47.8]} 9... c6 {[%clk 0:04:40.2]} 10. b4
{[%clk 0:04:45.4]} 10... c5 {[%clk 0:04:37.1]} 11. a3 {[%clk 0:04:41.5]} 11...
cxb4 {[%clk 0:04:35.5]} 12. axb4 {[%clk 0:04:41.4]} 12... a5 {[%clk 0:04:33.2]}
13. Be3 {[%clk 0:04:19.2]} 13... b6 {[%clk 0:04:29.6]} 14. Nb5 {[%clk
0:04:07.6]} 14... Bb7 {[%clk 0:04:27.4]} 15. Nxd6# {[%clk 0:04:05.7]} 1-0

[Event "Live Chess"]
[Site "Chess.com"]
[Date "2024.06.02"]
[Round "-"]
[White "HoarseyHorsey"]
[Black "gobbles19"]
[Result "0-1"]
[WhiteElo "1612"]
[BlackElo "2221"]
[TimeControl "300"]
[EndTime "8:15:49 PDT"]
[Termination "gobbles19 won by resignation"]

1. d4 {[%clk 0:04:58.2]} 1... Nf6 {[%clk 0:04:58.8]} 2. c4 {[%clk 0:04:57.1]}
2... e6 {[%clk 0:04:58.3]} 3. Nc3 {[%clk 0:04:54.8]} 3... c5 {[%clk 0:04:57.9]}
4. d5 {[%clk 0:04:53.1]} 4... exd5 {[%clk 0:04:57.4]} 5. cxd5 {[%clk 0:04:53]}
5... d6 {[%clk 0:04:56.4]} 6. e4 {[%clk 0:04:52]} 6... g6 {[%clk 0:04:56]} 7. h3
{[%clk 0:04:39.1]} 7... Bg7 {[%clk 0:04:55.5]} 8. Nf3 {[%clk 0:04:38.4]} 8...
O-O {[%clk 0:04:55.1]} 9. Bd3 {[%clk 0:04:35.1]} 9... Re8 {[%clk 0:04:52.7]} 10.
O-O {[%clk 0:04:34]} 10... Na6 {[%clk 0:04:51.5]} 11. a3 {[%clk 0:04:22.4]}
11... Nc7 {[%clk 0:04:49.5]} 12. Bg5 {[%clk 0:04:21.4]} 12... h6 {[%clk
0:04:47.9]} 13. Bh4 {[%clk 0:04:20.2]} 13... Rb8 {[%clk 0:04:43.1]} 14. Re1
{[%clk 0:04:16.6]} 14... b5 {[%clk 0:04:39.5]} 15. Rc1 {[%clk 0:04:09.5]} 15...
g5 {[%clk 0:04:26.2]} 16. Nxg5 {[%clk 0:04:02.7]} 16... hxg5 {[%clk 0:04:26.1]}
17. Bxg5 {[%clk 0:04:02.2]} 17... Qd7 {[%clk 0:04:23.8]} 18. Qf3 {[%clk
0:04:00.2]} 18... Nh7 {[%clk 0:04:19.3]} 19. Bh4 {[%clk 0:03:58.1]} 19... c4
{[%clk 0:03:57.8]} 20. Bb1 {[%clk 0:03:56.4]} 20... Na6 {[%clk 0:03:52.7]} 21.
Bg3 {[%clk 0:03:52.1]} 21... Nc5 {[%clk 0:03:50.8]} 22. Qh5 {[%clk 0:03:43.2]}
22... Nf8 {[%clk 0:03:35.7]} 23. f4 {[%clk 0:03:24]} 23... Nd3 {[%clk
0:03:12.4]} 24. Bxd3 {[%clk 0:03:21.9]} 24... cxd3 {[%clk 0:03:12.3]} 25. Rcd1
{[%clk 0:03:18.3]} 25... b4 {[%clk 0:03:08.3]} 26. axb4 {[%clk 0:03:17]} 26...
Rxb4 {[%clk 0:03:08.2]} 27. Rxd3 {[%clk 0:03:16.4]} 27... Rxb2 {[%clk
0:03:07.4]} 28. f5 {[%clk 0:03:12.1]} 28... Ba6 {[%clk 0:03:02.6]} 29. Rf3
{[%clk 0:03:09]} 29... Nh7 {[%clk 0:02:59.8]} 30. Ref1 {[%clk 0:02:45.1]} 30...
Bxf1 {[%clk 0:02:58.2]} 31. Rxf1 {[%clk 0:02:43.8]} 31... Bxc3 {[%clk
0:02:55.1]} 0-1

[Event "Live Chess"]
[Site "Chess.com"]
[Date "2024.06.02"]
[Round "-"]
[White "Dashman93"]
[Black "elephantgerrald"]
[Result "1-0"]
[WhiteElo "2123"]
[BlackElo "871"]
[TimeControl "300"]
[EndTime "8:15:58 PDT"]
[Termination "Dashman93 won by checkmate"]

1. d4 {[%clk 0:04:59.7]} 1... d5 {[%clk 0:04:48]} 2. e4 {[%clk 0:04:58.7]} 2...
dxe4 {[%clk 0:04:46.8]} 3. Nc3 {[%clk 0:04:57.9]} 3... Nf6 {[%clk 0:04:41.9]} 4.
f3 {[%clk 0:04:56.9]} 4... exf3 {[%clk 0:04:22.5]} 5. Nxf3 {[%clk 0:04:56.8]}
5... Nc6 {[%clk 0:04:18.1]} 6. Bc4 {[%clk 0:04:55.5]} 6... e6 {[%clk 0:04:00.2]}
7. O-O {[%clk 0:04:53.9]} 7... Bd6 {[%clk 0:03:23.2]} 8. Bg5 {[%clk 0:04:52.2]}
8... O-O {[%clk 0:03:22]} 9. d5 {[%clk 0:04:48.7]} 9... exd5 {[%clk 0:03:19]}
10. Nxd5 {[%clk 0:04:48.6]} 10... Be7 {[%clk 0:03:14.9]} 11. Nxe7+ {[%clk
0:04:43.2]} 11... Qxe7 {[%clk 0:03:11.2]} 12. Kh1 {[%clk 0:04:41.8]} 12... h6
{[%clk 0:03:07.2]} 13. Bh4 {[%clk 0:04:39.3]} 13... Bg4 {[%clk 0:03:04.2]} 14.
h3 {[%clk 0:04:36.2]} 14... Bxf3 {[%clk 0:03:01.5]} 15. Qxf3 {[%clk 0:04:36.1]}
15... Nd4 {[%clk 0:02:58.1]} 16. Bxf6 {[%clk 0:04:23.9]} 16... Qxf6 {[%clk
0:02:55.2]} 17. Qxf6 {[%clk 0:04:22.6]} 17... gxf6 {[%clk 0:02:52.7]} 18. Rxf6
{[%clk 0:04:22.5]} 18... Nxc2 {[%clk 0:02:51.5]} 19. Raf1 {[%clk 0:04:19.9]}
19... Ne3 {[%clk 0:02:49.1]} 20. R1f4 {[%clk 0:04:04.8]} 20... Rad8 {[%clk
0:02:35.7]} 21. Rxf7 {[%clk 0:03:50.2]} 21... Rd1+ {[%clk 0:02:27.8]} 22. Kh2
{[%clk 0:03:31.5]} 22... Nxc4 {[%clk 0:02:14.5]} 23. Rxf8+ {[%clk 0:03:30]}
23... Kg7 {[%clk 0:02:12.7]} 24. R8f7+ {[%clk 0:03:24.7]} 24... Kg6 {[%clk
0:02:10.9]} 25. Rxc7 {[%clk 0:03:23.4]} 25... Ne3 {[%clk 0:02:07.4]} 26. Rxb7
{[%clk 0:03:18.8]} 26... Rd2 {[%clk 0:01:58.1]} 27. Rf3 {[%clk 0:03:07]} 27...
Rxg2+ {[%clk 0:01:54.5]} 28. Kh1 {[%clk 0:03:06.5]} 28... Kg5 {[%clk 0:01:44.5]}
29. Rxe3 {[%clk 0:03:04.4]} 29... Kh4 {[%clk 0:01:41.2]} 30. Kxg2 {[%clk
0:02:44]} 30... a5 {[%clk 0:01:37]} 31. Rb5 {[%clk 0:02:10.5]} 31... a4 {[%clk
0:01:36.9]} 32. Re4# {[%clk 0:02:09.5]} 1-0

[Event "Live Chess"]
[Site "Chess.com"]
[Date "2024.06.02"]
[Round "-"]
[White "Larchikov"]
[Black "Vladyslav2008"]
[Result "0-1"]
[WhiteElo "2111"]
[BlackElo "2259"]
[TimeControl "300"]
[EndTime "8:15:59 PDT"]
[Termination "Vladyslav2008 won by resignation"]

1. d4 {[%clk 0:04:56.6]} 1... Nf6 {[%clk 0:04:58.7]} 2. c4 {[%clk 0:04:56.2]}
2... e6 {[%clk 0:04:57.4]} 3. Nf3 {[%clk 0:04:55.7]} 3... b6 {[%clk 0:04:55.3]}
4. Nc3 {[%clk 0:04:54.8]} 4... Bb4 {[%clk 0:04:52.5]} 5. Bg5 {[%clk 0:04:53.6]}
5... h6 {[%clk 0:04:48.8]} 6. Bh4 {[%clk 0:04:51.7]} 6... g5 {[%clk 0:04:30.3]}
7. Bg3 {[%clk 0:04:49.7]} 7... Ne4 {[%clk 0:04:26.6]} 8. Qc2 {[%clk 0:04:47.1]}
8... Bxc3+ {[%clk 0:04:24]} 9. bxc3 {[%clk 0:04:45.7]} 9... Bb7 {[%clk
0:04:22.7]} 10. e3 {[%clk 0:04:40.6]} 10... h5 {[%clk 0:04:21.5]} 11. Bd3 {[%clk
0:04:38.5]} 11... f5 {[%clk 0:04:20.1]} 12. d5 {[%clk 0:04:33.6]} 12... exd5
{[%clk 0:04:10.8]} 13. cxd5 {[%clk 0:04:31.6]} 13... Bxd5 {[%clk 0:04:09.8]} 14.
Nd4 {[%clk 0:04:29.5]} 14... O-O {[%clk 0:04:02.7]} 15. Nxf5 {[%clk 0:04:23.8]}
15... Qe8 {[%clk 0:03:53.5]} 16. Nd4 {[%clk 0:04:07.9]} 16... h4 {[%clk
0:03:49.2]} 17. Bxc7 {[%clk 0:04:05.8]} 17... Nxf2 {[%clk 0:03:44.5]} 18. O-O
{[%clk 0:03:41.4]} 18... Qxe3 {[%clk 0:03:10]} 19. Bh7+ {[%clk 0:03:08.1]} 19...
Kh8 {[%clk 0:02:52.7]} 20. Rxf2 {[%clk 0:02:55.1]} 20... Rxf2 {[%clk 0:02:42.5]}
21. Qxf2 {[%clk 0:02:53.5]} 21... Qxf2+ {[%clk 0:02:41.5]} 22. Kxf2 {[%clk
0:02:52]} 22... Kxh7 {[%clk 0:02:41.4]} 23. Re1 {[%clk 0:02:42.8]} 23... Nc6
{[%clk 0:02:35.8]} 24. Nxc6 {[%clk 0:02:32.3]} 24... Rf8+ {[%clk 0:02:22.4]} 25.
Kg1 {[%clk 0:02:25.6]} 25... Bxc6 {[%clk 0:02:19.4]} 26. Re7+ {[%clk 0:02:18.6]}
26... Kg6 {[%clk 0:02:17.9]} 27. Be5 {[%clk 0:02:13.4]} 27... Kf5 {[%clk
0:02:08.7]} 28. Bd4 {[%clk 0:02:10]} 28... Kg6 {[%clk 0:01:59.5]} 29. Rg7+
{[%clk 0:02:05.6]} 29... Kh6 {[%clk 0:01:57.7]} 30. Re7 {[%clk 0:02:03.3]} 30...
Rf5 {[%clk 0:01:55.2]} 31. Be5 {[%clk 0:01:43.1]} 31... Kg6 {[%clk 0:01:45]} 32.
c4 {[%clk 0:01:35]} 32... Rf8 {[%clk 0:01:39.4]} 33. Rg7+ {[%clk 0:01:30.5]}
33... Kf5 {[%clk 0:01:37.7]} 34. Re7 {[%clk 0:01:29.8]} 34... Kg4 {[%clk
0:01:28.2]} 35. Rh7 {[%clk 0:01:12]} 35... Re8 {[%clk 0:01:26.1]} 36. Bf6 {[%clk
0:01:04.8]} 36... Re2 {[%clk 0:01:24.6]} 37. Rg7 {[%clk 0:00:53.9]} 37... Rxg2+
{[%clk 0:01:23.2]} 38. Kf1 {[%clk 0:00:52.1]} 38... Kf5 {[%clk 0:01:17.2]} 39.
Bd8 {[%clk 0:00:50.6]} 39... h3 {[%clk 0:01:12.8]} 40. Rf7+ {[%clk 0:00:42.2]}
40... Kg6 {[%clk 0:01:10.6]} 41. Rf6+ {[%clk 0:00:40.1]} 41... Kh5 {[%clk
0:01:09]} 42. Rf7 {[%clk 0:00:39]} 42... Rxh2 {[%clk 0:01:06.2]} 43. Rh7+ {[%clk
0:00:37.1]} 43... Kg4 {[%clk 0:01:04.9]} 44. Rg7 {[%clk 0:00:35.7]} 44... Kf3
{[%clk 0:00:59.2]} 45. Rxg5 {[%clk 0:00:32.5]} 45... Rxa2 {[%clk 0:00:56.3]} 46.
Rf5+ {[%clk 0:00:30.9]} 46... Ke4 {[%clk 0:00:53.8]} 47. Rh5 {[%clk 0:00:25.8]}
47... h2 {[%clk 0:00:52.6]} 48. Bc7 {[%clk 0:00:23.9]} 48... h1=Q+ {[%clk
0:00:47.7]} 49. Rxh1 {[%clk 0:00:22.8]} 49... Ra1+ {[%clk 0:00:47.4]} 50. Kg2
{[%clk 0:00:22.1]} 50... Kf5+ {[%clk 0:00:47]} 51. Kh2 {[%clk 0:00:21.6]} 51...
Rxh1+ {[%clk 0:00:45.8]} 0-1

[Event "Live Chess"]
[Site "Chess.com"]
[Date "2024.06.02"]
[Round "-"]
[White "davigator"]
[Black "DylanMeyer1"]
[Result "1-0"]
[WhiteElo "2337"]
[BlackElo "1702"]
[TimeControl "300"]
[EndTime "8:16:03 PDT"]
[Termination "davigator won by resignation"]

1. e4 {[%clk 0:04:56.9]} 1... d5 {[%clk 0:04:59.9]} 2. exd5 {[%clk 0:04:55.5]}
2... Qxd5 {[%clk 0:04:59.8]} 3. Nc3 {[%clk 0:04:54.2]} 3... Qd6 {[%clk
0:04:59.7]} 4. d4 {[%clk 0:04:52.2]} 4... a6 {[%clk 0:04:57.8]} 5. Nge2 {[%clk
0:04:46.7]} 5... Nf6 {[%clk 0:04:57]} 6. Bf4 {[%clk 0:04:44.9]} 6... Qd8 {[%clk
0:04:54.6]} 7. Qd3 {[%clk 0:04:42.1]} 7... e6 {[%clk 0:04:54.5]} 8. O-O-O {[%clk
0:04:07.7]} 8... Be7 {[%clk 0:04:37.3]} 9. Ng3 {[%clk 0:04:06.3]} 9... O-O
{[%clk 0:04:35.4]} 10. h3 {[%clk 0:03:25]} 10... c5 {[%clk 0:03:58.2]} 11. Nge2
{[%clk 0:03:14.3]} 11... Nc6 {[%clk 0:03:51.5]} 12. d5 {[%clk 0:03:08.3]} 12...
Nxd5 {[%clk 0:03:49.1]} 13. Nxd5 {[%clk 0:03:07.4]} 13... exd5 {[%clk
0:03:48.5]} 14. Qxd5 {[%clk 0:03:06.2]} 14... Qxd5 {[%clk 0:03:48.4]} 15. Rxd5
{[%clk 0:03:04.7]} 15... b6 {[%clk 0:03:44.1]} 16. Nc3 {[%clk 0:03:02.3]} 16...
Bf6 {[%clk 0:03:41.9]} 17. Ne4 {[%clk 0:03:00.2]} 17... Be7 {[%clk 0:03:10.9]}
18. Bc4 {[%clk 0:02:49]} 18... Be6 {[%clk 0:02:37.8]} 19. Rhd1 {[%clk
0:02:47.3]} 19... b5 {[%clk 0:02:27.8]} 20. Be2 {[%clk 0:02:44.4]} 20... Rad8
{[%clk 0:02:24.5]} 21. Rxd8 {[%clk 0:02:42.3]} 21... Rxd8 {[%clk 0:02:24.4]} 22.
Rxd8+ {[%clk 0:02:40.5]} 22... Nxd8 {[%clk 0:02:20.7]} 23. Bd6 {[%clk
0:02:34.4]} 23... Bxd6 {[%clk 0:02:13]} 24. Nxd6 {[%clk 0:02:34.3]} 24... Kf8
{[%clk 0:02:06.2]} 25. f3 {[%clk 0:02:29.6]} 25... Ke7 {[%clk 0:02:05.4]} 26.
Ne4 {[%clk 0:02:28.7]} 26... c4 {[%clk 0:01:56.4]} 27. c3 {[%clk 0:02:27.6]}
27... f5 {[%clk 0:01:49.9]} 28. Ng5 {[%clk 0:02:23.7]} 28... h6 {[%clk
0:01:46.9]} 29. Nxe6 {[%clk 0:02:21.5]} 29... Kxe6 {[%clk 0:01:46.8]} 30. f4
{[%clk 0:02:20.7]} 30... g5 {[%clk 0:01:15.8]} 31. g3 {[%clk 0:02:17.3]} 31...
gxf4 {[%clk 0:01:07.2]} 32. gxf4 {[%clk 0:02:15.9]} 32... Kd6 {[%clk 0:00:59.7]}
33. Kd2 {[%clk 0:02:14.8]} 33... Ne6 {[%clk 0:00:32.8]} 34. Ke3 {[%clk
0:02:12.9]} 34... Kc5 {[%clk 0:00:22.5]} 35. Bd1 {[%clk 0:02:11.3]} 35... b4
{[%clk 0:00:21.1]} 36. Bc2 {[%clk 0:02:08.5]} 36... Ng7 {[%clk 0:00:18.8]} 37.
cxb4+ {[%clk 0:02:05.6]} 37... Kxb4 {[%clk 0:00:17.9]} 38. Kd4 {[%clk
0:02:05.3]} 38... Ne6+ {[%clk 0:00:14.1]} 39. Ke5 {[%clk 0:02:04]} 39... Nc5
{[%clk 0:00:13.5]} 40. Bxf5 {[%clk 0:02:02.1]} 40... Nd3+ {[%clk 0:00:13.4]} 41.
Kd4 {[%clk 0:01:54.4]} 41... Nxb2 {[%clk 0:00:11.8]} 42. Bc2 {[%clk 0:01:53]}
42... Nd3 {[%clk 0:00:10.2]} 43. Bxd3 {[%clk 0:01:50.4]} 43... cxd3 {[%clk
0:00:10.1]} 44. Kxd3 {[%clk 0:01:49.8]} 44... Kc5 {[%clk 0:00:10]} 45. Ke4
{[%clk 0:01:48.6]} 45... Kd6 {[%clk 0:00:09.9]} 46. Kf5 {[%clk 0:01:47.4]} 46...
Ke7 {[%clk 0:00:09.8]} 47. Kg6 {[%clk 0:01:46.5]} 47... Kf8 {[%clk 0:00:09.7]}
48. Kxh6 {[%clk 0:01:45.7]} 48... Kf7 {[%clk 0:00:09.6]} 49. Kg5 {[%clk
0:01:44.9]} 49... Kg7 {[%clk 0:00:08.9]} 50. f5 {[%clk 0:01:44.5]} 50... Kf7
{[%clk 0:00:08.8]} 51. f6 {[%clk 0:01:44.1]} 51... Kf8 {[%clk 0:00:07.7]} 52.
Kg6 {[%clk 0:01:43.6]} 52... Ke8 {[%clk 0:00:07.6]} 53. Kg7 {[%clk 0:01:42.6]}
53... Kd7 {[%clk 0:00:06.6]} 54. f7 {[%clk 0:01:42.5]} 54... Kc6 {[%clk
0:00:06.4]} 55. f8=Q {[%clk 0:01:41.7]} 55... Kb5 {[%clk 0:00:06.3]} 56. Qd6
{[%clk 0:01:40.3]} 56... Kc4 {[%clk 0:00:06.2]} 57. Qxa6+ {[%clk 0:01:39.5]}
57... Kc3 {[%clk 0:00:04.9]} 58. Qd6 {[%clk 0:01:37.5]} 1-0